{"text_format":"3","workbook":"xlsx","n_sheets":11,"sheets":["Cover","Flyer 1","Contents","Flyer 2","Notes to Tenderers","Flyer 3","Section 1 - Summary","Section 2 - Summary ","BOQ","Flyer 5","Final Summary"],"not_rendered":{"images":1,"external_links":14,"defined_names":1179},"read":"whole","date_system":"1900"}

{"sheet":"Cover","index":0,"n_rows":45,"n_cols":8,"rows_kept":45,"merged":[[9,0,9,9],[11,0,11,9],[12,1,25,9],[28,6,28,9],[31,6,31,9],[34,6,34,9],[37,6,37,9]]}
[" "]
{"$rows_empty":7}
[{"$nulls":7}," "]
["ESKOM GENERATION"]
["  "]
[2026]
[null," THE PROVISION OF 24-HOUR EMERGENCY SPILLAGE RESPONSE AT CAMDEN POWER STATION FOR A PERIOD OF 48 MONTHS.  - BILLS OF QUANTITIES "]
{"$rows_empty":15}
["CONTRACT NUMBER",{"$nulls":4},":"]
[]
[]
["CONTRACTOR",{"$nulls":4},":"]
[]
[]
["CONTRACT AMOUNT (EXCL. VAT)",{"$nulls":4},":"]
[]
[]
["CONTRACT AMOUNT (INCL. VAT)",{"$nulls":4},":"]
[]
[]
[]
[]
[]
[]
[null,null," "]

{"sheet":"Flyer 1","index":1,"n_rows":13,"n_cols":1,"rows_kept":13,"merged":[[12,0,26,8]]}
{"$rows_empty":12}
["TABLE OF CONTENTS"]

{"sheet":"Contents","index":2,"n_rows":16,"n_cols":9,"rows_kept":16,"merged":[[0,0,0,8],[2,0,2,8]]}
["  THE PROVISION OF 24-HOUR EMERGENCY SPILLAGE RESPONSE AT CAMDEN POWER STATION FOR A PERIOD OF 48 MONTHS.  - BILLS OF QUANTITIES "]
[]
["TABLE OF CONTENTS"]
[]
[null,"Contract Data"]
[]
[null,"Notes to Tenderers"]
[]
[null,"Bill of Quantities"]
[]
[null,"Section 1",null,": Outage Bills of Quantities"]
[]
[null,"Section 2",null,": Maintenance Bills of Quantities"]
[]
[]
[null,"Final Summary",{"$nulls":6}," "]

{"sheet":"Flyer 2","index":3,"n_rows":12,"n_cols":1,"rows_kept":12,"merged":[[11,0,25,8]]}
{"$rows_empty":11}
["NOTES TO TENDERERS"]

{"sheet":"Notes to Tenderers","index":4,"n_rows":114,"n_cols":2,"rows_kept":114}
[]
[null,"NOTES TO TENDERERS"]
[]
[null,"1. BILLS OF QUANTITIES"]
[]
[null,"This document comprises Notes to Tenderers and Bills of Quantities and is hereafter referred to as \"the Bills of Quantities\"."]
[]
[null,"The Tenderers are to note that this is a Contract with a Bills of Quantities."]
[]
[null,"2.1 CONTRACT DOCUMENTS"]
[]
[null,"The contract documents will consist of:"]
[]
[null,"2.1.1 The NEC3 Term Services Contract 2013 together with all amendments."]
[]
[null,"2.1.2 These Bills of Quantities, including all annexures and supplementary documentation referred to therein."]
[]
[null,"2.1.3 Documents to be provided by the Contractor in terms of the requirements of these Bills of Quantities."]
[]
[null,"2.1.4 Construction Regulations 2014"]
[]
[null,"2.1.5 Occupational Health and Safety Act of 1993"]
[]
[null,"3 DRAWINGS"]
[]
[null,"There are no drawings for this contract."]
[]
[null,"4 VALUE ADDED TAX"]
[]
[null,"Tenderers should compute their rates from the net costs (excluding Value Added Tax). Value Added Tax at the current rate of 15% is to be added to the net sub-total on the final summary page by means of a single sum calculation to establish the tender price."]
[]
[null,"5 SCOPE OF WORK"]
[]
[null,"As a guide only, the work comprises as follows:-"]
[]
[null," THE PROVISION OF 24-HOUR EMERGENCY SPILLAGE RESPONSE AT CAMDEN POWER STATION FOR A PERIOD OF 48 MONTHS"]
[]
[null,"6 ADDRESS WHERE DOCUMENTS CAN BE OBTAINED"]
[]
[null,"Tender documents will be made available Electronically on an online portal to be provided by  Eskom"]
[]
[null,"7 POSSESSION OF SITE"]
[]
[null,"The date of which possession of the Site shall be given to the Contractor shall be within 7 working days of the acceptance of this tender."]
[]
[null,"8 CONSTRUCTION PERIOD -  DATES FOR PRACTICAL COMPLETION"]
[]
[null,"The intended date for practical completion and penalty for each calendar day for non-completion shall be: "]
[]
[null,"Practical Completion:  48 Months from the date of Site Handover"]
[]
[null,"Tenderers are to note that the Contract will be delivered as a whole and NOT to be phased."]
[]
[null,"9 COMMON LAW OR BY-LAW REQUIREMENTS"]
[]
[null,"No liability for not specifically mentioning any normal contractual, Common Law or By-Law requirements will be accepted by the Employer,  or Contracts Manager."]
[]
[null,"10 ORDERING OF MATERIALS"]
[]
[null,"No claims will be entertained due to non-availability of materials or labour.  The Tenderer is therefore required to investigate and ensure that the specific materials and components required for the works will be available at the relevant estimated construction times, at the time of tendering."]
[]
[null,"11 CONTRACT PRICE ADJUSTMENT"]
[null,"The Contract Sum shall  be subject to CPAP."]
[]
[null,"12. PRICED BILLS OF QUANTITIES:"]
[]
[null,"Tenderers must submit to the Contracts Manager a copy of the Bills of Quantities fully priced and extended, with his tender. After the Bills have been checked, and when called upon, each page of the Bills of Quantities shall be initialed and the Index page and the Final Summary page signed in full. "]
[]
[null,"13 DIFFERENCE AND DISCREPANCIES:"]
[]
[null,"Should there be any difference or discrepancy between the prices or particulars contained in the official Tender Form and those contained in any covering letter from the Tenderer, the prices contained in the official Tender Form shall prevail."]
[]
[null,"Every Tenderer shall be deemed to have waived, renounced and abandoned any conditions printed or written upon any stationery used by him for the purpose of or in connection with the submission of his Tender, which are in conflict with the Conditions of Tender."]
[]
[null,"Tenderers are warned that any material divergence from the official conditions or specifications may render their Tenders liable to disqualification."]
[]
[null,"The Tenderers are to note that if there are any arithmetical errors in the Tenderers' form of tender in calculation of the Tender Sum, the Contracts Manager will correct the calculation accordingly."]
[]
[null,"14 COMMUNICATION WITH MEMBERS OF THE CLIENT COMPANY OR PROFESSIONAL TEAM"]
[]
[null,"A Tenderer shall not in any way communicate with a member of the Client Company or Professional Team or with any officer on a question affecting any contract or the supply of goods or for any work, undertaking or service which is the subject of a Tender during the period between the closing date for receipt of Tenders and the dispatch of the written notification of the Employer's decision on the award of the contract; provided that a Tenderer shall not hereby be precluded from obtaining from the Employer or his authorised representative information as to the date upon which the award of the contract is likely to be made or, after the decision upon the award has been made by the Contracts Manager to which the Employer had delegated its powers, information as to the nature of the decision or such information as was publicly disclosed at the opening of Tenders."]
[]
[null,"15 IMPORT PERMITS:"]
[]
[null,"Tenderers must apply direct for any import permit and/or currency required, however the Contracts Manager will furnish successful Tenderers with a supporting statement if required."]
[]
[null,"16 BILLS OF QUANTITIES:"]
[]
[null,"No alteration, erasure, omission or addition is to be made to the text and conditions of these Bills of Quantities and should any such alteration, amendment, note or addition be made, the same will not be recognised, but the reading of the Bills of Quantities as prepared by the Contracts Manager will be adhered to."]
[]
[null,"It should be understood that the system of measurement herein adopted is the only system of measurement which will be recognised in connection with this contract. Before the signing of the contract, the Contracts Manager will be entitled to call for adjustments of individual rates and rectify discrepancies, as he considers necessary without alterations to the Tender amount."]
[]
[null,"6 Ensure that every employee or person (including visitors) who enters the site of the Works undergoes health and safety induction training pertaining to hazards identified on the site of the Works and upon such training having been successfully completed, the Contractor must issue written confirmation by a competent person to the trained employees or persons who shall be further instructed to carry such confirmation with them at all times whilst on the site of the Works;"]
[]
[null,"7 Issue, on loan, the necessary personal protective equipment to visitors to the site of the Works; and"]
[]
[null,"8 Be in good standing with the Compensation Commissioner at all times during the duration of the Contract."]
[]
[null,"9 The Contractor is to sign a Non-Disclosure Agreement prior to collecting or receiving any proprietary information from Eskom, drawings, documentation, reports and photographs"]
[]
[null,"The Contractor will be deemed to have satisfied himself with his obligations in terms of the Act and to have allowed for all costs arising from compliance with the Act as no claim for extra costs arising from compliance with, and obligations in terms of the Act will be entertained."]
[]
[null,"17 PRICING OF THESE GENERAL NOTES"]
[]
[null,"The Contractor must allow in his pricing for any additional costs arising from these \"General Notes\" as no later claims for additional costs will be considered."]
[]
[null,"18 TAX COMPLIANCE"]
[]
[null,"Failure to provide mandatory information required in this Bid will result in the submissions being deemed null and void and shall be considered non-responsive. An Electronic Tax Compliance Status (TCS) System will be used to verify the bidder’s tax compliance status so bidders must request a unique security personal identification number (PIN) from SARS which must be submitted with the bid"]
[]
[null,"No alternative tender offers will be considered."]
[null,"These Bills are not to be used for the purpose of ordering materials."]
[]
[null,"All Bill rates are to include for material, labour, plant, wastage, transport and profit."]

{"sheet":"Flyer 3","index":5,"n_rows":13,"n_cols":1,"rows_kept":13,"merged":[[12,0,26,8]]}
{"$rows_empty":12}
["BILLS OF QUANTITIES"]

{"sheet":"Section 1 - Summary","index":6,"n_rows":23,"n_cols":4,"rows_kept":23,"hidden":true,"merged":[[1,0,1,3],[4,0,4,3],[6,0,6,3]]}
[]
["Provision of Mechanical Maintenance of the Boiler Auxiliary Plant, Soot Blowers and Valves for the Period of 36 Months (Outage BOQ)"]
[]
[]
["SECTION SUMMARY"]
[]
["SECTION 01 - OUTAGES BILL OF QUANTITIES"]
[]
[]
["No","Description",null,"Amount"]
[]
[null,"SECTION 1: OUTAGE BOQ"]
[]
[1,"Outage BOQ",null,"R"]
[]
[]
[null,"Sub-Total",null,"R"]
[]
[]
[2,"Value Added Tax @ 15%",null,"R"]
[]
[]
[3,"Grand Total  -  (Incl. VAT) ",null,"R"]

{"sheet":"Section 2 - Summary ","index":7,"n_rows":23,"n_cols":4,"rows_kept":23,"hidden":true,"merged":[[1,0,1,3],[4,0,4,3],[6,0,6,3]]}
[]
["Provision of Mechanical Maintenance of the Boiler Auxiliary Plant, Soot Blowers and Valves for the Period of 60 Months (Maintenance)"]
[]
[]
["SECTION SUMMARY"]
[]
["SECTION 02 - MAINTENANCE BILL OF QUANTITIES"]
[]
[]
["No","Description",null,"Amount"]
[]
[null,"SECTION 1: OUTAGE BOQ"]
[]
[1,"Maintenance BOQ",null,"R"]
[]
[]
[null,"Sub-Total",null,"R"]
[]
[]
[2,"Value Added Tax @ 15%",null,"R"]
[]
[]
[3,"Grand Total  -  (Incl. VAT) ",null,"R"]

{"sheet":"BOQ","index":8,"n_rows":145,"n_cols":6,"rows_kept":145,"merged":[[0,0,0,6],[90,7,90,11]]}
["The provision of 24 hour emergency spill response (Hazmat )for period of 48 months at Camden Power Station"]
[]
["Item","Description","Unit","Qty","Rate","Amount"]
[]
[1,"PRELIMINARIES AND GENERAL"]
[]
[1.1,"Site Establishment ","SUM",1]
[1.2,"Site-De-establishment","SUM",1]
[1.3,"Tools,Equipment ","Yearly",4]
[1.4,"Workforce Medical","No",{"$f":"14*4","v":56}]
[1.5,"Workforce Medical Exit","NO",14]
[1.6,"PPE ( Quarterly)","Quartely",{"$f":"14*4*4","v":224}]
[1.7,"Specialized acid PPE-First Issue (as when required)","Quartely",{"$f":"14*4*4","v":224}]
[1.8,"Acid Proof Boots","Yearly",{"$f":"14*1*4","v":56}]
[1.9,"SAPS/ Fingerprint Vetting","ANNUALLY",{"$f":"14*4","v":56}]
[{"v":1.1,"d":"1.10"},"Full SHEQ Complinace ISO45001/ISO9001/14001","Sum",1]
[1.11,"HAZMAT TECHNICIAN COMPENTANCE CERTIFICATE ie SAESI Registered FireFighting 1 and 2  (Membership Fees)","ANNUALLY",{"$f":"2*4","v":8}]
[1.12,"Life Jackets ","EA",{"$f":"3*4","v":12}]
[1.13,"Half Mask Respirator Cartridge","EA",{"$f":"14*4","v":56}]
[1.14,"Wader suit","EA",{"$f":"14*4","v":56}]
[]
[null,"Preliminaries and Genaral Items"]
[]
[2,"Human Resource"]
[null,"Normal Hours "]
[2.1,"Site Manager x 1 No","Hourly",{"$f":"173*48*1","v":8304}]
[2.2,"Safety Officer 1 No","Hourly",{"$f":"173*48*1","v":8304}]
[2.1,"Hazmat Supervisor x 1No","Hourly",8304]
[2.2,"Hazmat Technician x 2No","Hourly",{"$f":"173*48*2","v":16608}]
[2.3,"Hazmat Skip Operator (as and when required) 1 No","Hourly",8304]
[2.4,"Hazmat Assistant x 8 No","Hourly",{"$f":"173*48*8","v":66432}]
[]
[null,"Standby Allowance (Mon-Sat) (1.5 x Normal Rate)"]
[2.5,"Safety Officer","Hourly",{"$f":"12*48","v":576}]
[2.6,"Hazmat Supervisor x 1","Hourly",{"$f":"16*48","v":768}]
[2.7,"Hazmat Technician x 2","Hourly",{"$f":"16*2*48","v":1536}]
[2.8,"Hazmat Skip Operator (as and when required)","Hourly",{"$f":"12*48","v":576}]
[2.9,"Hazmat Assistant x 8","Hourly",{"$f":"12*48*8","v":4608}]
[]
[null,"Standby Allowance (Sundays and Public Holidays)(2x Normal Rate)"]
[{"v":2.1,"d":"2.10"},"Safety Officer","Hourly",{"$f":"4*48","v":192}]
[2.11,"Hazmat Supervisor x 1","Hourly",{"$f":"4*48","v":192}]
[2.12,"Hazmat Technician x 2","Hourly",{"$f":"4*2*48","v":384}]
[2.13,"Hazmat Skip Operator (as and when required)","Hourly",{"$f":"4*48","v":192}]
[2.14,"Hazmat Assistant x 8","Hourly",{"$f":"4*48*8","v":1536}]
[]
[null,"Weekdays & Saturdays Call outs (As and when required) (1.5x)"]
[2.15,"Safety Officer","Hourly",{"$f":"1*8*12*48","v":4608}]
[2.16,"Hazmat Supervisor x 1","Hourly",{"$f":"1*8*12*48","v":4608}]
[2.17,"Hazmat Technician x 2","Hourly",{"$f":"2*8*12*48","v":9216}]
[2.18,"Hazmat Skip Operator (as and when required)","Hourly",{"$f":"1*8*12*48","v":4608}]
[2.19,"Hazmat Assistant x 8","Hourly",{"$f":"8*8*12*48","v":36864}]
[]
[null,"Sundays & Public Holidays (2x Normal Rate)"]
[{"v":2.2,"d":"2.20"},"Hazmat Supervisor x 1","Hourly",{"$f":"1*8*4*48","v":1536}]
[2.21,"Hazmat Technician x 2","Hourly",{"$f":"2*8*4*48","v":3072}]
[2.22,"Hazmat Skip Operator (as and when required)","Hourly",{"$f":"2*8*4*48","v":3072}]
[2.23,"Hazmat Assistant x 8","Hourly",{"$f":"2*8*4*48","v":3072}]
[]
[null,"Human Resource"]
[]
[3.1,"2x bakkie ","Monthly",{"$f":"2*48","v":96}]
[3.2,"2 Ton Hazmat Trailer ","Monthly",48]
[3.3,"2 Ton Hazmat Trailer Towing - Km (Camden-Holfontein return trip)","Km",{"$f":"284*2*12*48","v":327168}]
[3.4,"2 Super Sucker Trucks (as and when required)","Hourly",{"$f":"2*11*12*48","v":12672}]
[3.5,"Skip Truck (as and when required)","Hourly",{"$f":"1*11*12*48","v":6336}]
[3.6,"7m3 Skip Bin","Monthly",48]
[3.7,"7m3 Sludge Bin","Monthly",48]
[]
[null,"Emergency (Huge Spillages)"]
[]
[3.8,"Super Sucker Truck (as and when required)","Hourly",{"$f":"2*3*4*4","v":96}]
[3.9,"14 Ton Bulk Tanker ","Hourly",{"$f":"(6+8+1)*4*4","v":240}]
[{"v":3.1,"d":"3.10"},"24 Ton Bulk Tanker","Hourly",{"$f":"(6+8+1)*4*4","v":240}]
[3.11,"34 Ton Bulk Tanker","Hourly",{"$f":"(6+8+1)*4*4","v":240}]
[]
[null,"Cleaning Equipment"]
[]
[3.12,"Compressor 190 cfm (as and when required)","Hrly",{"$f":"6*8*48","v":2304}]
[3.13,"Compressor Call Out","Day",{"$f":"6*48","v":288}]
[3.14,"4\" Diaphragm Pump and Hose","Hour",{"$f":"6*8*48","v":2304}]
[3.15,"Fastank 2000 including Liner and Cover","Day",{"$f":"6*48","v":288}]
[3.16,"1m3 Liquid Container","Day",288]
[3.17,"300w Emergency Light","Hour",{"$f":"6*8*48","v":2304}]
[3.18,"750 Bar High-pressure Cleaner","Hour",2304]
[]
[null,"Equipment"]
[]
[null,"ADDITIONAL"]
[4.1,"Self-prime diesel pump","Hour",{"$f":"6*8*48","v":2304}]
[4.2,"TLB","Day",{"$f":"(365/4)*4","v":365}]
[]
[null,"ABSORBENTS"]
[4.3,"240L Kits - In Wheeled Bins Maintenance","Monthly",{"$f":"12*48","v":576}]
[4.4,"240L Kits - In Wheeled Bins Oil only","Monthly",{"$f":"12*48","v":576}]
[4.5,"240L Kits - In Wheeled Bins Chemical","Monthly",576]
[4.6,"Large Oil Spill Kit - carry bag 95 x 44 x 36cm consists of 1 x 100L Biozorb peat fibre, 2 x 2m Oilsep socks, 2 x Oilsep cushions, 20 x 200g Oil absorbent pads, 1 x Pair anti-mist goggles, 1 x Sparkproof shovel and broom, 5 x Heavy duty disposal bags and ties and 1 x instruction sheet.","Monthly",576]
[4.7,"Pack  of 16 Absorbent Pillow 38 x 23 cm Maintenance","Monthly",576]
[4.8,"Pack of 16 Absorbent Pillow 38 x 23 cm Oil only","Monthly",576]
[4.9,"Pack of 16 Absorbent Pillow 38 x 23 cm Chemical ","Monthly",576]
[{"v":4.1,"d":"4.10"},"Absorbent Booms 6m (2/bag)","Monthly",576]
[4.11,"Absorbent Booms 4m (2/bag)","Monthly",576]
[4.12,"Absorbent Booms 10m","Monthly",576]
[4.13,"Absorbent Booms 30m","Monthly",576]
[4.14,"Absorbent Booms 50m","Monthly",576]
[4.15,"Absorbent Pads 500 x 400mm Maintenance medium","Monthly",576]
[4.16,"Absorbent Pads 500 x 400mm Oil only medium","Monthly",576]
[4.17,"Absorbent Pads 500 x 400mm Chemical medium","Monthly",576]
[4.18,"Absorbent Drum Top Cover to fit top of a 205L drum Maintenance - pack of 5 covers","Monthly",576]
[4.19,"Absorbent Drum Top Cover to fit top of a 205L drum Oil only - pack of 5 covers","Monthly",576]
[{"v":4.2,"d":"4.20"},"Absorbent Drum Top Cover to fit top of a 205L drum Chemical - pack of 5 covers","Monthly",576]
[4.21,"Absorbent Rolls 40 000 x 900mm Maintenance medium","Monthly",576]
[4.22,"Absorbent Rolls 40 000 x 900mm Oil only medium","Monthly",576]
[4.23,"Absorbent Rolls 40 000 x 900mm Chemical medium","Monthly",576]
[4.24,"Absorbent Rolls 40 000 x 500mm Maintenance medium","Monthly",576]
[4.25,"Absorbent Rolls 40 000 x 500mm Oil only medium","Monthly",576]
[4.26,"Absorbent Rolls 40 000 x 500mm Chemical medium","Monthly",576]
[4.27,"Oilsep Fibre 10kg","Monthly",576]
[4.28,"Biozorb 100L Bag","Monthly",576]
[4.29,"Biozorb 200L Bag","Monthly",576]
[{"v":4.3,"d":"4.30"},"Oilsep 200L Bag","Monthly",576]
[4.31,"Sparkproof Shovel and Broom","Monthly",576]
[4.32,"Heavy Duty Bags and Ties","Monthly",576]
[4.33,"PVC Sheeting roll","Monthly",576]
[4.34,"Danger Tape roll","Monthly",576]
[null,"Consumables "]
[4.35,"20L Degreaser","Monthly",48]
[4.36,"5L Thinners","Quartery",{"$f":"4*4","v":16}]
[4.37,"2L Benzene","Quartery",{"$f":"4*4","v":16}]
[4.38,"2x 5kg bags of Cleaning Rags","Monthly",{"$f":"48*2","v":96}]
[]
[]
[null,"ABSORBENTS AND ABSORBENTS COST"]
[]
[5,"DISPOSAL"]
[5.1,"Testing of Hazardous Material for Disposal (Sampling)","Item",{"$f":"3*48","v":144}]
[5.2,"Disposal of Hazardous Material (Sludge Material)","Ton",{"$f":"22*2*12*24","v":12672}]
[5.3,"Disposal of Hazardous Material (Liquids Material)","Ton",{"$f":"14*2*4*48","v":5376}]
[6,"REHABILITATION"]
[6.1,"Supply and laying of topsoil for rehabilitation","m3",180]
[6.2,"Removal of contaminated soil","m3",250]
[]
[null,"DISPOSAL AND DISPOSAL COST"]
[]
[null,"Grand-Total Cost"]

{"sheet":"Flyer 5","index":9,"n_rows":12,"n_cols":1,"rows_kept":12,"merged":[[11,0,25,8]]}
{"$rows_empty":11}
["FINAL SUMMARY"]

{"sheet":"Final Summary","index":10,"n_rows":18,"n_cols":4,"rows_kept":18,"merged":[[1,0,1,3],[4,0,4,3]]}
[]
["Provision of Mechanical Maintenance of the Boiler Auxiliary Plant, Soot Blowers and Valves for the Period of 48 Months (Outage and Maintenance)"]
[]
[]
["FINAL SUMMARY"]
[]
["No","Description",null,"Amount"]
[]
[1,"Bills of Quantities               "]
[]
[]
[]
[null,"Sub-Total"]
[]
[3,"Value Added Tax @ 15%"]
[]
[]
[4,"Grand Total (Incl. VAT)  - Carried to Form of Offer and Acceptance"]